bitfinex/quotes_SOLUSD_20240718
["timestamp","ask_amount","ask_price","bid_price","bid_amount"]
[1721291633720,15.1772,158.98,158.93,12.17]
[1721291635142,27.3472,158.98,158.92,12.17]
[1721291635323,6.57337903,158.97,158.93,12.17]
[1721291636547,6.57337903,158.97,158.92,12.17]
[1721291636727,6.4538,158.96,158.91,12.17]
[1721291637062,12.17,158.95,158.9,12.17]
[1721291637220,12.17,158.95,158.89,12.17]
[1721291638243,12.17,158.92,158.87,12.17]
[1721291638453,6.4538,158.91,158.87,12.17]
[1721291638825,6.4538,158.91,158.8,48.68]
[1721291639024,15.8634,158.89,158.85,12.17]
[1721291639222,15.8634,158.89,158.86,12.17]
[1721291639565,15.8634,158.89,158.85,12.17]
[1721291640041,28.0334,158.89,158.79,0.8166365]
[1721291640220,15.8634,158.89,158.8,1.2590823]
[1721291640421,15.8634,158.89,158.79,45.1966365]
[1721291641124,15.8634,158.89,158.82,24.38]
[1721291641318,15.8634,158.89,158.83,21.25875145]
[1721291641743,15.8634,158.89,158.84,45.0]
[1721291642046,15.8634,158.89,158.85,1.25873452]
[1721291643235,15.8634,158.89,158.86,1.25873453]
[1721291643956,15.8634,158.89,158.84,45.0]
[1721291644450,15.8634,158.89,158.83,45.0]
[1721291645648,22.43744611,158.89,158.83,45.0]
[1721291646751,22.43744611,158.89,158.79,25.1966365]
[1721291647049,22.43744611,158.89,158.8,20.0]
[1721291648056,22.43744611,158.89,158.81,45.0]
[1721291649450,28.73144611,158.89,158.8,20.0]
[1721291649753,6.6439,158.87,158.79,0.8166365]
[1721291651157,16.3327,158.85,158.79,0.8166365]
[1721291651849,6.0608,158.84,158.79,0.8166365]
[1721291653330,12.3565,158.84,158.79,0.8166365]
[1721291653630,0.17,158.83,158.79,0.8166365]
[1721291654344,22.1841,158.82,158.79,0.8166365]
[1721291654531,22.1841,158.82,158.68,24.38]
[1721291654532,6.467,158.81,158.68,24.38]
[1721291654856,6.467,158.81,158.69,20.0]
[1721291655759,0.17,158.81,158.69,20.0]
[1721291655942,6.57197741,158.8,158.69,20.0]
[1721291656335,6.57197741,158.8,158.71,24.38]
[1721291656637,6.57197741,158.8,158.72,65.0]
[1721291657153,6.57197741,158.8,158.73,1.25958293]
[1721291657350,6.57197741,158.8,158.74,1.25958501]
[1721291658030,6.57197741,158.8,158.72,65.0]
[1721291658228,6.57197741,158.8,158.73,1.25958739]
[1721291658450,6.57197741,158.8,158.74,24.38]
[1721291658759,22.1841,158.82,158.75,45.0]
[1721291660066,22.1841,158.82,158.76,1.2594132]
[1721291660363,15.7327,158.91,158.77,25.63928797]
[1721291660364,21.7633,158.91,158.77,25.63928797]
[1721291660532,6.2933,158.9,158.78,65.0]
[1721291660738,6.57221475,158.87,158.78,65.0]
[1721291660961,6.2937,158.89,158.78,65.0]
[1721291661134,6.57202804,158.86,158.78,65.0]
[1721291661333,6.2933,158.9,158.78,65.0]
[1721291661554,6.2933,158.9,158.79,1.25915907]
[1721291661751,6.5719018,158.85,158.79,1.25915907]
[1721291661951,6.2937,158.89,158.78,65.0]
[1721291662264,6.57219205,158.87,158.78,65.0]
[1721291662430,0.17,158.86,158.78,65.0]
[1721291663362,0.17,158.86,158.79,1.25916017]
[1721291663567,0.17,158.86,158.8,1.25915768]
[1721291664571,0.17,158.86,158.78,65.0]
[1721291665268,0.17,158.86,158.79,1.25929681]
[1721291665566,0.17,158.86,158.78,65.0]
[1721291665873,6.57219205,158.87,158.78,65.0]
[1721291666782,6.57219205,158.87,158.8,24.38]
[1721291667089,6.57219205,158.87,158.81,66.25888552]
[1721291667272,6.57219205,158.87,158.83,24.38]
[1721291667587,6.57219205,158.87,158.84,45.0]
[1721291668076,6.57219205,158.87,158.85,1.25888463]
[1721291668247,6.57219205,158.87,158.84,45.0]
[1721291668448,6.57219205,158.87,158.83,24.38]
[1721291668644,6.57219205,158.87,158.84,1.25897954]
[1721291668849,6.57219205,158.87,158.82,1.25896708]
[1721291669045,6.57219205,158.87,158.83,1.25898203]
[1721291669449,6.57219205,158.87,158.82,45.0]
[1721291670181,0.17,158.86,158.81,20.0]
[1721291671478,0.17,158.86,158.8,24.38]
[1721291672570,0.17,158.86,158.81,1.25918621]
[1721291672763,0.17,158.86,158.8,24.38]
[1721291673171,0.17,158.86,158.77,24.38]
[1721291673172,22.2886,158.84,158.77,24.38]
[1721291673383,22.2886,158.84,158.78,45.0]
[1721291673556,22.2886,158.84,158.77,24.38]
[1721291673963,0.17,158.83,158.77,24.38]
[1721291674368,0.17,158.83,158.78,1.25935939]
[1721291674776,22.2886,158.84,158.77,24.38]
[1721291674979,22.2886,158.84,158.78,45.0]
[1721291677102,22.2886,158.84,158.78,46.25931338]
[1721291677282,0.17,158.83,158.78,1.25931338]
[1721291677654,0.17,158.83,158.77,24.38]
[1721291678083,0.17,158.83,158.78,1.25936916]
[1721291679070,0.17,158.83,158.78,1.25938292]
[1721291680288,0.17,158.83,158.81,12.19]
[1721291681295,22.2886,158.84,158.75,16.1683]
[1721291681586,22.2886,158.84,158.82,12.19]
[1721291683879,22.2886,158.84,158.8,12.19]
[1721291684078,0.17,158.83,158.8,12.19]
[1721291684686,6.74217289,158.83,158.79,12.19]
[1721291685294,12.19,158.81,158.71,15.1151]
[1721291685495,12.19,158.8,158.75,12.19]
[1721291685698,0.17,158.79,158.75,12.19]
[1721291686501,0.17,158.8,158.75,12.19]
[1721291686800,0.17,158.8,158.76,12.19]
[1721291687004,0.17,158.81,158.73,1.25968835]
[1721291687195,0.17,158.81,158.77,12.19]
[1721291687393,0.17,158.82,158.77,12.19]
[1721291688291,0.17,158.82,158.73,45.0]
[1721291688501,12.36,158.82,158.77,12.19]
[1721291690399,18.6565,158.82,158.77,12.19]
[1721291690700,28.3694,158.79,158.67,15.5886]
[1721291690903,0.17,158.78,158.73,12.19]
[1721291691299,0.17,158.78,158.74,12.19]
[1721291691794,0.17,158.78,158.73,12.19]
[1721291692309,0.17,158.78,158.67,39.9986]
[1721291692492,0.17,158.78,158.68,20.0]
[1721291692798,0.17,158.78,158.69,1.2600171]
[1721291693596,0.17,158.78,158.69,45.0]
[1721291693987,0.17,158.78,158.7,20.0]
[1721291694187,0.17,158.78,158.71,45.0]
[1721291695001,6.5719028,158.77,158.67,24.41]
[1721291695190,0.17,158.76,158.67,24.41]
[1721291696002,41.0054,158.75,158.58,10.0]
[1721291696303,6.3004,158.72,158.61,24.41]
[1721291696719,0.17,158.71,158.61,24.41]
[1721291697779,0.17,158.72,158.62,20.0]
[1721291698180,0.17,158.72,158.56,24.41]
[1721291698181,6.3011,158.71,158.56,10.0]
[1721291698386,6.3011,158.71,158.59,24.41]
[1721291698585,0.17,158.7,158.59,24.41]
[1721291699006,0.17,158.7,158.58,10.0]
[1721291699207,0.17,158.71,158.61,24.41]
[1721291700388,6.4708,158.71,158.61,24.41]
[1721291700693,0.17,158.71,158.61,24.41]
[1721291703100,21.7821,158.72,158.64,25.2266365]
[1721291703304,21.7821,158.72,158.65,45.0]
[1721291704313,21.7821,158.72,158.64,0.8166365]
[1721291704528,28.0827,158.72,158.64,0.8166365]
[1721291705011,0.17,158.71,158.64,0.8166365]
[1721291705515,6.73716881,158.71,158.64,0.8166365]
[1721291705816,13.03796881,158.71,158.64,0.8166365]
[1721291706319,25.61716881,158.71,158.64,0.8166365]
[1721291706502,6.3016,158.69,158.64,0.8166365]
[1721291706817,0.17,158.68,158.64,0.8166365]
[1721291707012,22.0027,158.67,158.64,0.8166365]
[1721291707215,0.17,158.66,158.64,0.8166365]
[1721291712526,22.0027,158.67,158.64,0.8166365]
[1721291712828,22.0027,158.67,158.66,12.22]
[1721291713197,6.3469,158.67,158.66,12.22]
[1721291713399,28.48196881,158.71,158.66,12.22]
[1721291713600,28.48196881,158.71,158.67,12.22]
[1721291714814,0.17,158.7,158.67,12.22]
[1721291715620,6.56909467,158.69,158.67,12.22]
[1721291715816,0.17,158.68,158.67,12.22]
[1721291716408,6.56909467,158.69,158.67,12.22]
[1721291716607,6.56909467,158.69,158.68,12.22]
[1721291716811,21.9148,158.71,158.68,12.22]
[1721291717126,28.48332937,158.71,158.69,12.22]
[1721291718404,28.48332937,158.71,158.65,45.0]
[1721291718732,28.48332937,158.71,158.68,12.22]
[1721291719023,0.17,158.7,158.68,12.22]
[1721291719917,28.48332937,158.71,158.68,12.22]
[1721291720121,6.56852937,158.71,158.7,12.22]
[1721291720303,23.0129,158.76,158.7,12.22]
[1721291720500,23.0129,158.76,158.67,10.0]
[1721291720705,6.2965,158.82,158.67,10.0]
[1721291720706,22.1387,158.8,158.75,12.22]
[1721291720912,6.56615028,158.76,158.72,12.22]
[1721291721111,22.1387,158.8,158.75,12.22]
[1721291721325,28.70379088,158.8,158.78,12.22]
[1721291721504,6.56509088,158.8,158.79,12.22]
[1721291722212,6.56509088,158.8,158.74,1.25967175]
[1721291722414,6.56509088,158.8,158.74,24.39]
[1721291722613,0.17,158.79,158.75,45.0]
[1721291722811,6.56509088,158.8,158.75,46.25963543]
[1721291723120,6.56509088,158.8,158.75,45.0]
[1721291724707,0.17,158.79,158.75,45.0]
[1721291726699,0.17,158.79,158.71,24.39]
[1721291727017,0.17,158.79,158.72,20.0]
[1721291727219,0.17,158.79,158.73,46.2598127]
[1721291727625,0.17,158.79,158.73,45.0]
[1721291731508,0.17,158.79,158.71,24.39]
[1721291731710,6.1462,158.77,158.72,45.0]
[1721291731922,0.17,158.76,158.68,39.4221]
[1721291732130,0.17,158.76,158.64,25.2066365]
[1721291732131,6.2992,158.75,158.64,40.3786365]
[1721291732330,6.2993,158.75,158.64,40.3786365]
[1721291732510,0.17,158.74,158.64,40.3786365]
[1721291733129,0.17,158.75,158.64,40.3786365]
[1721291733321,0.17,158.76,158.65,65.0]
[1721291733523,6.4689,158.76,158.65,65.0]
[1721291734015,0.17,158.76,158.65,65.0]
[1721291736327,6.4688,158.76,158.65,65.0]
[1721291737943,19.05,158.76,158.64,25.2066365]
[1721291738127,16.6045,158.73,158.64,25.2066365]
[1721291738324,0.17,158.72,158.64,25.2066365]
[1721291738842,0.17,158.72,158.64,0.8166365]
[1721291740113,6.4707,158.72,158.64,0.8166365]
[1721291740737,22.0285,158.7,158.64,0.8166365]
[1721291740940,0.17,158.69,158.64,0.8166365]
[1721291741146,6.4717,158.69,158.64,0.8166365]
[1721291741957,6.57166577,158.68,158.64,0.8166365]
[1721291742127,0.17,158.67,158.64,0.8166365]
[1721291752353,6.57163557,158.66,158.64,0.8166365]
[1721291752662,0.17,158.65,158.64,0.8166365]
[1721291758147,12.6233,158.65,158.64,0.8166365]
[1721291759451,27.9191,158.65,158.64,0.8166365]
[1721291760159,46.8591,158.65,158.64,0.8166365]
[1721291762056,27.7491,158.65,158.64,0.8166365]
[1721291762966,21.446,158.65,158.64,0.8166365]
[1721291764639,21.616,158.65,158.64,0.8166365]
[1721291767955,27.9191,158.65,158.64,0.8166365]
[1721291768474,21.616,158.65,158.64,0.8166365]
[1721291771045,40.1491,158.65,158.64,0.8166365]
[1721291773746,21.616,158.65,158.64,0.8166365]
[1721291774351,6.1502,158.65,158.64,0.8166365]
[1721291774552,6.57163557,158.66,158.64,0.8166365]
[1721291776481,0.17,158.65,158.64,0.8166365]
[1721291776654,6.57163557,158.66,158.64,13.0466365]
[1721291776857,6.57163557,158.66,158.65,12.23]
[1721291777684,6.57163557,158.66,158.64,13.0466365]
[1721291778370,6.57163557,158.66,158.65,12.23]
[1721291779078,6.74163557,158.66,158.65,12.23]
[1721291779456,6.74163557,158.66,158.64,13.0466365]
[1721291779688,0.17,158.65,158.64,13.0466365]
[1721291781075,0.17,158.65,158.64,0.8166365]
[1721291782176,12.4,158.65,158.64,0.8166365]
[1721291782381,0.17,158.65,158.64,0.8166365]
[1721291784354,0.17,158.65,158.64,13.0466365]
[1721291785880,0.17,158.65,158.64,0.8166365]
[1721291786762,12.4,158.65,158.64,0.8166365]
[1721291787091,18.7031,158.65,158.64,0.8166365]
[1721291787277,12.4,158.65,158.64,0.8166365]
[1721291787464,0.17,158.65,158.64,0.8166365]
[1721291789381,25.4131,158.65,158.64,0.8166365]
[1721291789694,47.8,158.65,158.64,0.6366365]
[1721291789885,25.2446,158.62,158.5,40.9475]
[1721291790101,6.3048,158.61,158.5,40.9475]
[1721291790456,6.55996631,158.6,158.5,40.9475]
[1721291791983,0.17,158.59,158.51,45.0]
[1721291792282,19.11,158.59,158.5,16.4975]
[1721291792580,25.7572,158.59,158.5,16.4975]
[1721291792784,6.3062,158.58,158.5,16.4975]
[1721291793165,0.17,158.57,158.5,16.4975]
[1721291793375,6.6472,158.59,158.5,16.4975]
[1721291793376,25.5872,158.59,158.5,16.4975]
[1721291793678,0.17,158.58,158.5,16.4975]
[1721291794685,41.8058,158.58,158.48,0.8166365]
[1721291794903,41.8058,158.58,158.48,2.07838085]
[1721291795187,35.4995,158.58,158.48,2.07838085]
[1721291796165,35.4995,158.58,158.48,47.07838085]
[1721291796772,25.2464,158.57,158.48,0.8166365]
[1721291796956,6.308,158.53,158.48,0.8166365]
[1721291797160,25.2475,158.54,158.48,0.8166365]
[1721291797474,0.17,158.53,158.48,0.8166365]
[1721291797783,6.478,158.53,158.48,0.8166365]
[1721291797966,0.17,158.53,158.48,0.8166365]
[1721291798468,6.478,158.53,158.48,0.8166365]
[1721291798979,19.11,158.53,158.48,0.8166365]
[1721291799569,25.4179,158.53,158.48,0.8166365]
[1721291799884,25.13,158.52,158.48,0.8166365]
[1721291800085,6.4791,158.51,158.48,0.8166365]
[1721291800457,19.11,158.51,158.48,0.8166365]
[1721291800669,40.5633,158.51,158.48,0.8166365]
[1721291800866,12.85854898,158.5,158.48,0.8166365]
[1721291801075,0.17,158.49,158.48,0.8166365]
[1721291801276,25.4195,158.49,158.48,0.8166365]
[1721291801497,41.048,158.49,158.4,24.45]
[1721291801660,41.048,158.49,158.34,15.853]
[1721291801661,18.94,158.48,158.34,17.11581298]
[1721291801860,25.2503,158.47,158.34,40.303]
[1721291802062,0.17,158.46,158.34,40.303]
[1721291802371,0.17,158.46,158.35,24.45]
[1721291802568,6.481,158.46,158.35,24.45]
[1721291802775,6.3112,158.45,158.35,24.45]
[1721291802975,6.3118,158.44,158.34,15.853]
[1721291803176,0.17,158.43,158.34,15.853]
[1721291803597,6.3116,158.44,158.34,15.853]
[1721291803773,6.4816,158.44,158.34,15.853]
[1721291804290,0.17,158.44,158.34,15.853]
[1721291804882,0.17,158.44,158.35,45.0]
[1721291805391,0.17,158.44,158.34,15.853]
[1721291805685,28.2478,158.49,158.36,24.45]
[1721291805865,21.938,158.49,158.37,1.26256147]
[1721291806064,21.938,158.49,158.39,24.45]
[1721291806265,6.54934898,158.5,158.4,1.26237448]
[1721291806464,6.54934898,158.5,158.41,15.2489]
[1721291806661,6.54934898,158.5,158.42,69.45]
[1721291809383,0.17,158.49,158.42,69.45]
[1721291809977,6.54934898,158.5,158.42,69.45]
[1721291810179,6.54934898,158.5,158.45,24.45]
[1721291810393,6.54934898,158.5,158.46,45.0]
[1721291810767,6.54934898,158.5,158.45,24.45]
[1721291810973,6.54934898,158.5,158.41,15.2489]
[1721291811283,6.54934898,158.5,158.42,45.0]
[1721291812218,0.17,158.49,158.42,45.0]
[1721291812501,0.17,158.49,158.41,15.2489]
[1721291812674,0.17,158.49,158.41,16.51114927]
[1721291812876,6.55052979,158.48,158.41,16.51114927]
[1721291813070,0.17,158.47,158.41,16.51114927]
[1721291813276,0.17,158.47,158.41,15.2489]
[1721291814201,6.55052979,158.48,158.41,15.2489]
[1721291815797,0.17,158.47,158.4,24.45]
[1721291816697,0.17,158.47,158.41,1.26242837]
[1721291816887,0.17,158.47,158.41,45.0]
[1721291821806,0.17,158.47,158.42,1.26233759]
[1721291821981,0.17,158.47,158.41,45.0]
[1721291821982,6.55052979,158.48,158.41,45.0]
[1721291823006,6.55052979,158.48,158.37,15.6838]
[1721291823311,6.55052979,158.48,158.38,24.45]
[1721291823809,0.17,158.47,158.38,24.45]
[1721291824011,0.17,158.47,158.39,1.26232816]
[1721291824207,0.17,158.47,158.4,1.2623097]
[1721291824383,6.54481135,158.46,158.4,1.2623097]
[1721291824691,6.54481135,158.46,158.39,45.0]
[1721291825496,6.54481135,158.46,158.38,24.45]
[1721291825702,0.17,158.45,158.38,24.45]
[1721291827592,6.4814,158.45,158.38,24.45]
[1721291827911,6.4814,158.45,158.35,24.45]
[1721291828606,0.17,158.45,158.35,24.45]
[1721291829323,6.54481135,158.46,158.38,24.45]
[1721291829599,6.54481135,158.46,158.39,45.0]
[1721291830015,6.54481135,158.46,158.41,24.45]
[1721291830189,6.54481135,158.46,158.42,46.26208261]
[1721291830389,15.2333,158.51,158.42,46.26208261]
[1721291830690,6.54028548,158.48,158.44,24.45]
[1721291831002,6.5905,158.53,158.45,45.0]
[1721291831197,6.54465509,158.48,158.41,24.45]
[1721291831405,6.3088,158.51,158.42,45.0]
[1721291831590,18.94,158.49,158.32,0.8166365]
[1721291831793,18.94,158.49,158.34,24.45]
[1721291831794,25.48721461,158.47,158.34,24.45]
[1721291832122,6.54721461,158.47,158.34,24.45]
[1721291832403,6.54721461,158.47,158.37,24.45]
[1721291832708,0.17,158.46,158.37,24.45]
[1721291832914,0.17,158.46,158.34,41.1027]
[1721291833111,0.17,158.46,158.37,24.45]
[1721291833405,6.54721461,158.47,158.4,24.45]
[1721291833589,6.54721461,158.47,158.37,24.45]
[1721291833796,6.54721461,158.47,158.38,45.0]
[1721291833998,12.85751461,158.47,158.38,45.0]
[1721291834688,0.17,158.46,158.38,45.0]
[1721291835717,6.54721461,158.47,158.39,1.26244367]
[1721291835887,6.54721461,158.47,158.4,24.45]
[1721291836092,6.54721461,158.47,158.41,45.0]
[1721291836523,6.6659,158.5,158.41,45.0]
[1721291836700,6.6659,158.5,158.43,24.45]
[1721291836890,6.5484601,158.49,158.44,45.0]
[1721291837601,6.5484601,158.49,158.46,24.45]
[1721291837809,6.0111,158.54,158.47,45.0]
[1721291838016,6.54669094,158.52,158.47,45.0]
[1721291841505,6.54669094,158.52,158.47,69.45]
[1721291841719,6.54669094,158.52,158.48,1.26169274]
[1721291841897,6.0111,158.54,158.49,1.26169274]
[1721291842090,12.55613639,158.54,158.49,1.26169274]
[1721291842311,12.55613639,158.54,158.47,69.45]
[1721291843297,12.55613639,158.54,158.48,1.26177212]
[1721291843507,12.55613639,158.54,158.47,69.45]
[1721291843707,12.55613639,158.54,158.48,1.26177825]
[1721291843922,12.55613639,158.54,158.48,1.26178056]
[1721291844417,12.55613639,158.54,158.49,1.26176323]
[1721291845326,12.55613639,158.54,158.47,69.45]
[1721291845525,6.54503639,158.54,158.47,69.45]
[1721291845822,6.54503639,158.54,158.48,1.26164756]
[1721291845998,6.54503639,158.54,158.49,1.26157716]
[1721291846824,6.54503639,158.54,158.47,69.45]
[1721291848719,6.54503639,158.54,158.47,79.45]
[1721291849318,6.0617,158.58,158.5,24.45]
[1721291849513,6.5411602,158.56,158.51,45.0]
[1721291851907,6.5411602,158.56,158.47,24.45]
[1721291852220,6.5411602,158.56,158.48,45.0]
[1721291852419,6.5411602,158.56,158.47,24.45]
[1721291853813,6.5411602,158.56,158.48,45.0]
[1721291854219,6.5411602,158.56,158.49,1.26162214]
[1721291855446,6.5411602,158.56,158.48,45.0]
[1721291857406,6.5411602,158.56,158.47,24.45]
[1721291857610,0.17,158.55,158.47,24.45]
[1721291858208,6.0617,158.58,158.47,24.45]
[1721291858410,0.17,158.57,158.47,24.45]
[1721291858836,0.17,158.57,158.48,45.0]
[1721291860038,6.4767,158.57,158.48,45.0]
[1721291860420,0.17,158.57,158.48,45.0]
[1721291860615,0.17,158.57,158.44,24.45]
[1721291860836,15.2732,158.52,158.42,15.4955]
[1721291862333,15.2732,158.52,158.43,45.0]
[1721291863212,6.3224,158.51,158.43,45.0]
[1721291868332,6.3224,158.51,158.47,12.25]
[1721291868735,6.3224,158.51,158.48,12.25]
[1721291870323,6.3224,158.51,158.49,12.25]
[1721291871132,6.3224,158.51,158.48,12.25]
[1721291871541,6.3224,158.51,158.47,12.25]
[1721291872127,6.3224,158.51,158.46,12.25]
[1721291872332,18.5724,158.51,158.46,12.25]
[1721291872645,12.25,158.48,158.43,12.25]
[1721291873232,12.25,158.48,158.38,15.6883]
[1721291873426,12.25,158.48,158.43,12.25]
[1721291873628,12.25,158.49,158.43,12.25]
[1721291874236,0.17,158.5,158.38,15.6883]
[1721291874439,0.17,158.5,158.39,65.0]
[1721291876659,6.4792,158.5,158.39,65.0]
[1721291876953,0.17,158.5,158.39,65.0]
[1721291878354,22.4363,158.49,158.38,24.5]
[1721291878563,6.3106,158.47,158.35,24.5]
[1721291878852,6.3106,158.47,158.36,45.0]
[1721291879059,0.17,158.46,158.36,45.0]
[1721291879234,20.0,158.47,158.36,45.0]
[1721291879435,0.17,158.46,158.36,45.0]
[1721291880052,20.0,158.48,158.36,45.0]
[1721291880254,0.17,158.47,158.36,45.0]
[1721291880743,0.17,158.47,158.38,24.5]
[1721291880945,28.7458,158.49,158.39,45.0]
[1721291881132,0.17,158.48,158.39,45.0]
[1721291881459,0.17,158.48,158.4,1.26228014]
[1721291881939,6.59679839,158.47,158.4,1.26228014]
[1721291883448,6.59679839,158.47,158.41,25.76208296]
[1721291883658,6.59679839,158.47,158.42,45.0]
[1721291884269,6.59679839,158.47,158.43,1.26204789]
[1721291884452,22.4363,158.49,158.43,1.26204789]
[1721291885670,22.4363,158.49,158.42,45.0]
[1721291886773,22.4363,158.49,158.38,24.5]
[1721291886959,22.4363,158.49,158.39,20.0]
[1721291887963,22.4363,158.49,158.4,45.0]
[1721291889862,22.4363,158.49,158.41,1.26210862]
[1721291890062,22.4363,158.49,158.4,45.0]
[1721291890465,22.4363,158.49,158.41,24.5]
[1721291890657,22.4363,158.49,158.42,45.0]
[1721291895078,6.59766955,158.48,158.37,10.0]
[1721291895279,6.3112,158.45,158.35,24.5]
[1721291895458,21.7695,158.47,158.35,24.5]
[1721291895654,6.3112,158.45,158.35,24.5]
[1721291896076,0.17,158.44,158.32,25.3166365]
[1721291896781,0.17,158.44,158.33,20.0]
[1721291897570,21.7695,158.47,158.35,24.5]
[1721291897770,0.17,158.46,158.36,1.26240504]
[1721291898171,0.17,158.46,158.35,24.5]
[1721291898364,0.17,158.46,158.36,45.0]
[1721291898678,6.4807,158.46,158.36,45.0]
[1721291898885,0.17,158.46,158.36,45.0]
[1721291901375,21.7695,158.47,158.36,55.0]
[1721291902263,21.7695,158.47,158.38,24.5]
[1721291902463,21.7695,158.47,158.39,45.0]
[1721291903584,21.7695,158.47,158.4,1.26220616]
[1721291903982,6.59766955,158.48,158.4,1.26220616]
[1721291903983,6.59766955,158.48,158.41,34.5]
[1721291904471,6.59766955,158.48,158.42,45.0]
[1721291904672,6.59766955,158.48,158.43,1.26188899]
[1721291905790,6.59766955,158.48,158.42,45.0]
[1721291907889,6.59766955,158.48,158.44,24.5]
[1721291908085,6.59766955,158.48,158.45,45.0]
[1721291911193,6.59766955,158.48,158.41,24.5]
[1721291911575,6.59766955,158.48,158.42,1.26205797]
[1721291911898,6.59766955,158.48,158.41,24.5]
[1721291911899,6.59766955,158.48,158.43,1.26206195]
[1721291912078,6.59766955,158.48,158.44,1.26207372]
[1721291912699,6.59766955,158.48,158.41,24.5]
[1721291912993,6.59766955,158.48,158.42,46.26206089]
[1721291913303,6.59766955,158.48,158.42,45.0]
[1721291916285,6.59766955,158.48,158.46,12.25]
[1721291916894,6.59766955,158.48,158.47,12.25]
[1721291918302,6.59766955,158.48,158.47,57.25]
[1721291918701,22.1805,158.51,158.47,57.25]
[1721291919007,6.59678388,158.48,158.47,45.0]
[1721291919209,22.1805,158.51,158.47,57.25]
[1721291919512,6.59682208,158.5,158.48,12.25]
[1721291919714,6.59682208,158.5,158.47,12.25]
[1721291922907,6.59682208,158.5,158.46,12.25]
[1721291923685,6.59682208,158.5,158.47,12.25]
[1721291925416,6.59682208,158.5,158.48,57.25]
[1721291928914,6.59682208,158.5,158.49,45.0]
[1721291929312,6.59682208,158.5,158.49,57.25]
[1721291929485,6.59682208,158.5,158.49,45.0]
[1721291932620,6.59682208,158.5,158.49,57.25]
[1721291933720,6.59682208,158.5,158.49,45.0]
[1721291935022,6.59682208,158.5,158.47,12.25]
[1721291936417,6.59682208,158.5,158.45,12.25]
[1721291936619,6.59682208,158.5,158.46,57.25]
[1721291937292,6.59682208,158.5,158.47,12.25]
[1721291939123,6.59682208,158.5,158.46,57.25]
[1721291939924,6.59682208,158.5,158.46,45.0]
[1721291940223,18.84682208,158.5,158.46,45.0]
[1721291940607,6.59682208,158.5,158.46,57.25]
[1721291941223,6.59682208,158.5,158.48,12.25]
[1721291941798,6.59682208,158.5,158.47,12.25]
[1721291941998,6.59682208,158.5,158.48,45.0]
[1721291944031,12.25,158.49,158.35,16.1518]
[1721291944322,12.25,158.46,158.41,12.25]
[1721291946705,12.25,158.46,158.42,45.0]
[1721291948202,12.25,158.45,158.42,45.0]
[1721291948402,12.25,158.46,158.41,57.25]
[1721291948810,34.8067,158.45,158.4,12.25]
[1721291950327,22.5567,158.45,158.41,57.25]
[1721291951208,22.5567,158.45,158.42,1.26223611]
[1721291951421,12.25,158.47,158.42,13.51223611]
[1721291951635,18.8453919,158.48,158.43,57.25]
[1721291951927,18.8453919,158.48,158.43,12.25]
[1721291953431,18.8453919,158.48,158.44,1.26214709]
[1721291953926,18.8453919,158.48,158.44,45.0]
[1721291954105,12.25,158.47,158.42,12.25]
[1721291954309,12.25,158.47,158.43,45.0]